[Event "Titled Tuesday Blitz November 16 2021"]
[White "Mickiewicz, Piotr"]
[Black "Andreikin, Dmitry"]
[WhiteFideId "1114891"]
[BlackFideId "4158814"]
[WhiteElo "2251"]
[BlackElo "2736"]
[Result "0-1"]
[Round "01"]
[TimeControl "180+1"]
[Date "2021.11.16"]
[WhiteClock "0:00:01"]
[BlackClock "0:00:18"]

1. Nf3 {[%clk 0:02:58]}  Nf6 {[%clk 0:02:59]} 2. g3 {[%clk 0:02:54]}  d5 {[%clk 0:02:58]} 3. Bg2 {[%clk 0:02:49]}  h5 {[%clk 0:02:56]} 4. O-O {[%clk 0:02:50]}  h4 {[%clk 0:02:55]} 5. c4 {[%clk 0:02:46]}  hxg3 {[%clk 0:02:55]} 6. fxg3 {[%clk 0:02:44]}  Bh3 {[%clk 0:02:50]} 7. Qb3 {[%clk 0:02:30]}  Bxg2 {[%clk 0:02:49]} 8. Kxg2 {[%clk 0:02:29]}  Qc8 {[%clk 0:02:26]} 9. cxd5 {[%clk 0:02:23]}  Qh3+ {[%clk 0:02:23]} 10. Kg1 {[%clk 0:02:18]}  Nbd7 {[%clk 0:02:24]} 11. d4 {[%clk 0:01:46]}  Ng4 {[%clk 0:02:13]} 12. Qxb7 {[%clk 0:01:13]}  Rb8 {[%clk 0:02:11]} 13. Qxc7 {[%clk 0:01:13]}  Nxh2 {[%clk 0:02:09]} 14. Nbd2 {[%clk 0:01:12]}  Nxf1 {[%clk 0:01:57]} 15. Nxf1 {[%clk 0:01:11]}  g6 {[%clk 0:01:48]} 16. Bf4 {[%clk 0:00:52]}  Bg7 {[%clk 0:01:44]} 17. d6 {[%clk 0:00:28]}  O-O {[%clk 0:01:24]} 18. dxe7 {[%clk 0:00:28]}  Rfe8 {[%clk 0:01:23]} 19. Ng5 {[%clk 0:00:21]}  Qf5 {[%clk 0:01:12]} 20. e4 {[%clk 0:00:18]}  Bxd4+ {[%clk 0:01:10]} 21. Kh1 {[%clk 0:00:18]}  Qg4 {[%clk 0:01:07]} 22. Nh2 {[%clk 0:00:18]}  Qe2 {[%clk 0:00:47]} 23. Qxd7 {[%clk 0:00:17]}  Qxb2 {[%clk 0:00:40]} 24. Rd1 {[%clk 0:00:12]}  Be5 {[%clk 0:00:41]} 25. Qd5 {[%clk 0:00:10]}  Rxe7 {[%clk 0:00:41]} 26. Nhf3 {[%clk 0:00:06]}  Bxf4 {[%clk 0:00:37]} 27. gxf4 {[%clk 0:00:07]}  Kg7 {[%clk 0:00:36]} 28. Qd4+ {[%clk 0:00:06]}  f6 {[%clk 0:00:34]} 29. Qxb2 {[%clk 0:00:05]}  Rxb2 {[%clk 0:00:34]} 30. Nh3 {[%clk 0:00:05]}  Rxe4 {[%clk 0:00:33]} 31. Rd7+ {[%clk 0:00:04]}  Kh6 {[%clk 0:00:33]} 32. Rd2 {[%clk 0:00:04]}  Rxd2 {[%clk 0:00:28]} 33. Nxd2 {[%clk 0:00:05]}  Re2 {[%clk 0:00:25]} 34. Nf3 {[%clk 0:00:04]}  Rxa2 {[%clk 0:00:24]} 35. Kg1 {[%clk 0:00:05]}  a5 {[%clk 0:00:25]} 36. Nf2 {[%clk 0:00:04]}  a4 {[%clk 0:00:24]} 37. Nd4 {[%clk 0:00:03]}  a3 {[%clk 0:00:23]} 38. f5 {[%clk 0:00:03]}  Ra1+ {[%clk 0:00:21]} 39. Kg2 {[%clk 0:00:03]}  a2 {[%clk 0:00:21]} 40. Ng4+ {[%clk 0:00:02]}  Kg5 {[%clk 0:00:20]} 41. Nf3+ {[%clk 0:00:01]}  Kxg4 {[%clk 0:00:18]} 42. fxg6 {[%clk 0:00:01]}  Rb1 {[%clk 0:00:18]} 43. g7 {[%clk 0:00:01]}  Rb2+ {[%clk 0:00:18]} 0-1


[Site "https://www.chess.com"]

[Event "Titled Tuesday Blitz November 16 2021"]
[White "Mostbauer, Maximilian"]
[Black "Pour Agha Bala, Amirreza"]
[WhiteFideId "1626680"]
[BlackFideId "12572896"]
[WhiteElo "2188"]
[BlackElo "2313"]
[Result "1/2-1/2"]
[Round "01"]
[TimeControl "180+1"]
[Date "2021.11.16"]
[WhiteClock "0:01:03"]
[BlackClock "0:01:01"]

1. d4 {[%clk 0:03:00]}  d5 {[%clk 0:02:59]} 2. Nf3 {[%clk 0:03:01]}  c6 {[%clk 0:02:59]} 3. g3 {[%clk 0:03:02]}  Nf6 {[%clk 0:02:59]} 4. Bg2 {[%clk 0:03:03]}  Bf5 {[%clk 0:02:58]} 5. O-O {[%clk 0:03:03]}  h6 {[%clk 0:02:54]} 6. b3 {[%clk 0:03:04]}  e6 {[%clk 0:02:54]} 7. Bb2 {[%clk 0:03:05]}  Nbd7 {[%clk 0:02:53]} 8. Nbd2 {[%clk 0:03:05]}  Be7 {[%clk 0:02:49]} 9. c4 {[%clk 0:03:06]}  O-O {[%clk 0:02:49]} 10. Ne5 {[%clk 0:03:07]}  Nxe5 {[%clk 0:02:46]} 11. dxe5 {[%clk 0:03:08]}  Ne4 {[%clk 0:02:45]} 12. Nxe4 {[%clk 0:03:08]}  dxe4 {[%clk 0:02:44]} 13. e3 {[%clk 0:03:08]}  Qc7 {[%clk 0:02:40]} 14. Qc2 {[%clk 0:03:06]}  Rad8 {[%clk 0:02:38]} 15. Rad1 {[%clk 0:03:07]}  Rxd1 {[%clk 0:02:26]} 16. Rxd1 {[%clk 0:03:08]}  Bg4 {[%clk 0:02:25]} 17. Rd2 {[%clk 0:03:02]}  Bf3 {[%clk 0:02:21]} 18. Bxf3 {[%clk 0:02:59]}  exf3 {[%clk 0:02:21]} 19. Qe4 {[%clk 0:03:00]}  Rd8 {[%clk 0:02:18]} 20. Rd4 {[%clk 0:02:14]}  c5 {[%clk 0:02:10]} 21. Rxd8+ {[%clk 0:02:14]}  Qxd8 {[%clk 0:02:11]} 22. Qxf3 {[%clk 0:02:15]}  Qd2 {[%clk 0:02:11]} 23. Qxb7 {[%clk 0:02:15]}  Bf8 {[%clk 0:01:56]} 24. Ba3 {[%clk 0:02:09]}  Qxa2 {[%clk 0:01:50]} 25. Qxa7 {[%clk 0:02:09]}  Qxb3 {[%clk 0:01:49]} 26. Bxc5 {[%clk 0:02:09]}  Qb1+ {[%clk 0:01:34]} 27. Kg2 {[%clk 0:02:05]}  Qe4+ {[%clk 0:01:34]} 28. Kg1 {[%clk 0:02:01]}  Qb1+ {[%clk 0:01:18]} 29. Kg2 {[%clk 0:02:01]}  Qe4+ {[%clk 0:01:18]} 30. Kg1 {[%clk 0:01:45]}  Qxc4 {[%clk 0:01:16]} 31. Bxf8 {[%clk 0:01:43]}  Kxf8 {[%clk 0:01:17]} 32. Qb8+ {[%clk 0:01:41]}  Ke7 {[%clk 0:01:16]} 33. Qd6+ {[%clk 0:01:42]}  Ke8 {[%clk 0:01:15]} 34. Qb8+ {[%clk 0:01:42]}  Ke7 {[%clk 0:01:15]} 35. Qd6+ {[%clk 0:01:43]}  Ke8 {[%clk 0:01:14]} 36. Qd4 {[%clk 0:01:44]}  Qc6 {[%clk 0:01:12]} 37. h4 {[%clk 0:01:41]}  Qf3 {[%clk 0:01:11]} 38. Qa4+ {[%clk 0:01:37]}  Kf8 {[%clk 0:01:09]} 39. Qb4+ {[%clk 0:01:33]}  Kg8 {[%clk 0:01:08]} 40. Qf4 {[%clk 0:01:34]}  Qd1+ {[%clk 0:01:07]} 41. Kg2 {[%clk 0:01:34]}  Qd5+ {[%clk 0:01:06]} 42. e4 {[%clk 0:01:33]}  Qd4 {[%clk 0:01:05]} 43. g4 {[%clk 0:01:34]}  Qd1 {[%clk 0:01:04]} 44. g5 {[%clk 0:01:32]}  h5 {[%clk 0:01:03]} 45. Qf3 {[%clk 0:01:31]}  Qd4 {[%clk 0:01:03]} 46. Qf4 {[%clk 0:01:25]}  g6 {[%clk 0:01:03]} 47. Kg3 {[%clk 0:01:21]}  Qc3+ {[%clk 0:01:02]} 48. Kg2 {[%clk 0:01:20]}  Qd4 {[%clk 0:01:01]} 49. Kg3 {[%clk 0:01:06]}  Qc3+ {[%clk 0:01:01]} 50. Kg2 {[%clk 0:01:03]}  Qd4 {[%clk 0:01:01]} 1/2-1/2


[Site "https://www.chess.com"]

[Event "Titled Tuesday Blitz November 16 2021"]
[White "Nesterov, Arseniy"]
[Black "Coto Mederos, Michel"]
[WhiteFideId "24198455"]
[BlackFideId "3508528"]
[WhiteElo "2489"]
[BlackElo "2427"]
[Result "1-0"]
[Round "01"]
[TimeControl "180+1"]
[Date "2021.11.16"]
[WhiteClock "0:00:25"]
[BlackClock "0:00:03"]

1. d4 {[%clk 0:03:00]}  d5 {[%clk 0:02:58]} 2. c4 {[%clk 0:02:57]}  e6 {[%clk 0:02:57]} 3. Nf3 {[%clk 0:02:57]}  Nf6 {[%clk 0:02:56]} 4. Nc3 {[%clk 0:02:56]}  Be7 {[%clk 0:02:55]} 5. Bg5 {[%clk 0:02:55]}  h6 {[%clk 0:02:54]} 6. Bh4 {[%clk 0:02:55]}  O-O {[%clk 0:02:52]} 7. e3 {[%clk 0:02:55]}  b6 {[%clk 0:02:52]} 8. Be2 {[%clk 0:02:54]}  Bb7 {[%clk 0:02:50]} 9. Bxf6 {[%clk 0:02:54]}  Bxf6 {[%clk 0:02:50]} 10. cxd5 {[%clk 0:02:55]}  exd5 {[%clk 0:02:51]} 11. b4 {[%clk 0:02:55]}  c5 {[%clk 0:02:33]} 12. bxc5 {[%clk 0:02:56]}  bxc5 {[%clk 0:02:34]} 13. Rb1 {[%clk 0:02:56]}  Bc6 {[%clk 0:02:29]} 14. O-O {[%clk 0:02:55]}  Nd7 {[%clk 0:02:09]} 15. Bb5 {[%clk 0:02:54]}  Qc7 {[%clk 0:02:05]} 16. Qd3 {[%clk 0:02:52]}  c4 {[%clk 0:01:59]} 17. Qc2 {[%clk 0:02:34]}  Rab8 {[%clk 0:01:51]} 18. Bxc6 {[%clk 0:02:31]}  Qxc6 {[%clk 0:01:50]} 19. Qf5 {[%clk 0:02:30]}  Nb6 {[%clk 0:01:28]} 20. Rb5 {[%clk 0:02:29]}  g6 {[%clk 0:01:19]} 21. Qc2 {[%clk 0:02:06]}  Rfe8 {[%clk 0:00:59]} 22. Rfb1 {[%clk 0:02:06]}  Red8 {[%clk 0:00:41]} 23. g3 {[%clk 0:02:00]}  Kg7 {[%clk 0:00:40]} 24. a4 {[%clk 0:01:55]}  Rbc8 {[%clk 0:00:27]} 25. a5 {[%clk 0:01:49]}  Na8 {[%clk 0:00:28]} 26. Rc5 {[%clk 0:01:40]}  Qe6 {[%clk 0:00:26]} 27. Rxc8 {[%clk 0:01:38]}  Rxc8 {[%clk 0:00:25]} 28. Kg2 {[%clk 0:01:27]}  a6 {[%clk 0:00:20]} 29. Rb7 {[%clk 0:01:15]}  Bd8 {[%clk 0:00:19]} 30. Ne5 {[%clk 0:01:13]}  Rc7 {[%clk 0:00:19]} 31. Rb8 {[%clk 0:01:10]}  Rc8 {[%clk 0:00:20]} 32. Rxc8 {[%clk 0:01:10]}  Qxc8 {[%clk 0:00:20]} 33. Nxd5 {[%clk 0:01:10]}  Qb7 {[%clk 0:00:21]} 34. Qxc4 {[%clk 0:01:08]}  Bxa5 {[%clk 0:00:20]} 35. e4 {[%clk 0:01:07]}  Nb6 {[%clk 0:00:20]} 36. Qb3 {[%clk 0:00:52]}  Qb8 {[%clk 0:00:14]} 37. Nc6 {[%clk 0:00:51]}  Qe8 {[%clk 0:00:06]} 38. Ne5 {[%clk 0:00:41]}  Nxd5 {[%clk 0:00:06]} 39. Qxd5 {[%clk 0:00:41]}  Bc7 {[%clk 0:00:06]} 40. Nc4 {[%clk 0:00:39]}  a5 {[%clk 0:00:06]} 41. e5 {[%clk 0:00:36]}  a4 {[%clk 0:00:06]} 42. Qc5 {[%clk 0:00:36]}  Bd8 {[%clk 0:00:06]} 43. d5 {[%clk 0:00:32]}  Qd7 {[%clk 0:00:06]} 44. d6 {[%clk 0:00:30]}  Qb7+ {[%clk 0:00:06]} 45. Kg1 {[%clk 0:00:27]}  Qa8 {[%clk 0:00:07]} 46. h4 {[%clk 0:00:25]}  h5 {[%clk 0:00:06]} 47. d7 {[%clk 0:00:25]}  Qb7 {[%clk 0:00:06]} 48. Qc8 {[%clk 0:00:25]}  Qb1+ {[%clk 0:00:06]} 49. Kg2 {[%clk 0:00:25]}  Qc2 {[%clk 0:00:07]} 50. Qxd8 {[%clk 0:00:23]}  Qe4+ {[%clk 0:00:07]} 51. Kg1 {[%clk 0:00:23]}  Qe1+ {[%clk 0:00:06]} 52. Kg2 {[%clk 0:00:23]}  Qe4+ {[%clk 0:00:07]} 53. Kh2 {[%clk 0:00:24]}  Qxc4 {[%clk 0:00:05]} 54. Qf6+ {[%clk 0:00:24]}  Kh7 {[%clk 0:00:05]} 55. d8=Q {[%clk 0:00:25]}  a3 {[%clk 0:00:03]} 56. Qdh8# {[%clk 0:00:25]} 1-0


[Site "https://www.chess.com"]

[Event "Titled Tuesday Blitz November 16 2021"]
[White "Sasikiran, Krishnan"]
[Black "Haitin, Ilja"]
[WhiteFideId "5004985"]
[BlackFideId "4501764"]
[WhiteElo "2552"]
[BlackElo "2206"]
[Result "1/2-1/2"]
[Round "01"]
[TimeControl "180+1"]
[Date "2021.11.16"]
[WhiteClock "0:01:01"]
[BlackClock "0:00:04"]

1. e4 {[%clk 0:03:00]}  c5 {[%clk 0:02:59]} 2. Nf3 {[%clk 0:03:00]}  Nc6 {[%clk 0:03:00]} 3. Bb5 {[%clk 0:02:59]}  a6 {[%clk 0:02:59]} 4. Bxc6 {[%clk 0:02:59]}  dxc6 {[%clk 0:03:00]} 5. d3 {[%clk 0:02:58]}  Qc7 {[%clk 0:02:58]} 6. O-O {[%clk 0:02:54]}  e5 {[%clk 0:02:58]} 7. Nfd2 {[%clk 0:02:51]}  Ne7 {[%clk 0:02:54]} 8. a4 {[%clk 0:02:48]}  a5 {[%clk 0:02:54]} 9. Nc4 {[%clk 0:02:47]}  Ng6 {[%clk 0:02:51]} 10. Nba3 {[%clk 0:02:40]}  Be7 {[%clk 0:02:49]} 11. f4 {[%clk 0:02:27]}  exf4 {[%clk 0:02:38]} 12. Qf3 {[%clk 0:02:24]}  O-O {[%clk 0:02:25]} 13. Bxf4 {[%clk 0:02:23]}  Nxf4 {[%clk 0:02:26]} 14. Qxf4 {[%clk 0:02:24]}  Qxf4 {[%clk 0:02:27]} 15. Rxf4 {[%clk 0:02:24]}  Be6 {[%clk 0:02:26]} 16. Raf1 {[%clk 0:02:17]}  Bf6 {[%clk 0:02:01]} 17. Rxf6 {[%clk 0:02:13]}  gxf6 {[%clk 0:02:00]} 18. Ne3 {[%clk 0:02:09]}  b5 {[%clk 0:01:56]} 19. axb5 {[%clk 0:02:03]}  cxb5 {[%clk 0:01:56]} 20. Nxb5 {[%clk 0:02:02]}  Rab8 {[%clk 0:01:46]} 21. c4 {[%clk 0:02:02]}  Bd7 {[%clk 0:01:46]} 22. Rxf6 {[%clk 0:01:57]}  Bxb5 {[%clk 0:01:45]} 23. cxb5 {[%clk 0:01:57]}  Rxb5 {[%clk 0:01:44]} 24. Nc4 {[%clk 0:01:52]}  Rd8 {[%clk 0:01:35]} 25. Rf3 {[%clk 0:01:51]}  a4 {[%clk 0:01:35]} 26. Kf1 {[%clk 0:01:48]}  Rxb2 {[%clk 0:01:30]} 27. Nxb2 {[%clk 0:01:42]}  a3 {[%clk 0:01:29]} 28. Rf6 {[%clk 0:01:41]}  Ra8 {[%clk 0:01:11]} 29. Ke2 {[%clk 0:01:30]}  a2 {[%clk 0:01:04]} 30. Rf1 {[%clk 0:01:30]}  a1=Q {[%clk 0:00:50]} 31. Rxa1 {[%clk 0:01:29]}  Rxa1 {[%clk 0:00:51]} 32. Nc4 {[%clk 0:01:29]}  Kg7 {[%clk 0:00:46]} 33. Ne3 {[%clk 0:01:24]}  Kf6 {[%clk 0:00:43]} 34. g3 {[%clk 0:01:20]}  Ke5 {[%clk 0:00:40]} 35. h4 {[%clk 0:01:10]}  Ra2+ {[%clk 0:00:38]} 36. Kf3 {[%clk 0:01:10]}  Kd4 {[%clk 0:00:36]} 37. Nc4 {[%clk 0:01:08]}  Kxd3 {[%clk 0:00:31]} 38. Ne5+ {[%clk 0:01:08]}  Kd4 {[%clk 0:00:28]} 39. Nxf7 {[%clk 0:01:08]}  c4 {[%clk 0:00:28]} 40. Nd6 {[%clk 0:01:08]}  c3 {[%clk 0:00:24]} 41. Nb5+ {[%clk 0:01:08]}  Kc4 {[%clk 0:00:21]} 42. Nxc3 {[%clk 0:01:08]}  Kxc3 {[%clk 0:00:22]} 43. Ke3 {[%clk 0:01:08]}  Ra5 {[%clk 0:00:19]} 44. g4 {[%clk 0:01:07]}  Kc4 {[%clk 0:00:19]} 45. Kf4 {[%clk 0:01:05]}  Kd4 {[%clk 0:00:19]} 46. g5 {[%clk 0:01:06]}  Ra1 {[%clk 0:00:11]} 47. Kf5 {[%clk 0:01:03]}  Rf1+ {[%clk 0:00:10]} 48. Ke6 {[%clk 0:01:02]}  Kxe4 {[%clk 0:00:10]} 49. h5 {[%clk 0:01:02]}  Kf4 {[%clk 0:00:03]} 50. g6 {[%clk 0:01:01]}  hxg6 {[%clk 0:00:04]} 51. hxg6 {[%clk 0:01:01]}  Rg1 {[%clk 0:00:04]} 52. Kf7 {[%clk 0:01:01]}  Kf5 {[%clk 0:00:04]} 53. g7 {[%clk 0:01:01]}  Rxg7+ {[%clk 0:00:04]} 54. Kxg7 {[%clk 0:01:01]} 1/2-1/2


[Site "https://www.chess.com"]

[Event "Titled Tuesday Blitz November 16 2021"]
[White "Tahbaz, Arash"]
[Black "Grigorian, Spartak"]
[WhiteFideId "12528846"]
[BlackFideId "24661490"]
[WhiteElo "2377"]
[BlackElo "2413"]
[Result "1-0"]
[Round "01"]
[TimeControl "180+1"]
[Date "2021.11.16"]
[WhiteClock "0:00:32"]
[BlackClock "0:00:01"]

1. d4 {[%clk 0:02:59]}  Nf6 {[%clk 0:02:59]} 2. Nf3 {[%clk 0:03:00]}  d5 {[%clk 0:02:59]} 3. c4 {[%clk 0:03:00]}  e6 {[%clk 0:02:59]} 4. g3 {[%clk 0:03:01]}  Bb4+ {[%clk 0:02:58]} 5. Nbd2 {[%clk 0:03:00]}  dxc4 {[%clk 0:02:57]} 6. Qc2 {[%clk 0:03:00]}  a5 {[%clk 0:02:50]} 7. Bg2 {[%clk 0:02:58]}  b5 {[%clk 0:02:48]} 8. a4 {[%clk 0:02:53]}  c6 {[%clk 0:02:37]} 9. Ne5 {[%clk 0:02:51]}  Nd5 {[%clk 0:02:25]} 10. O-O {[%clk 0:02:38]}  O-O {[%clk 0:02:24]} 11. Ne4 {[%clk 0:02:34]}  f6 {[%clk 0:01:59]} 12. Nf3 {[%clk 0:02:32]}  Nd7 {[%clk 0:01:56]} 13. Nc3 {[%clk 0:02:07]}  Ba6 {[%clk 0:01:41]} 14. e4 {[%clk 0:02:02]}  N5b6 {[%clk 0:01:41]} 15. axb5 {[%clk 0:01:44]}  cxb5 {[%clk 0:01:41]} 16. e5 {[%clk 0:01:43]}  f5 {[%clk 0:01:39]} 17. Ng5 {[%clk 0:01:39]}  Qe7 {[%clk 0:01:35]} 18. Bxa8 {[%clk 0:01:19]}  Rxa8 {[%clk 0:01:36]} 19. d5 {[%clk 0:01:19]}  exd5 {[%clk 0:00:33]} 20. Qxf5 {[%clk 0:01:18]}  g6 {[%clk 0:00:33]} 21. Qh3 {[%clk 0:01:02]}  Nxe5 {[%clk 0:00:21]} 22. Re1 {[%clk 0:01:02]}  Bc8 {[%clk 0:00:09]} 23. Qh6 {[%clk 0:00:53]}  Ng4 {[%clk 0:00:04]} 24. Rxe7 {[%clk 0:00:49]}  Nxh6 {[%clk 0:00:04]} 25. Rxh7 {[%clk 0:00:48]}  Nf5 {[%clk 0:00:04]} 26. Nxb5 {[%clk 0:00:46]}  d4 {[%clk 0:00:04]} 27. Bf4 {[%clk 0:00:42]}  d3 {[%clk 0:00:04]} 28. Nc3 {[%clk 0:00:34]}  Bd7 {[%clk 0:00:03]} 29. Nce4 {[%clk 0:00:34]}  Rf8 {[%clk 0:00:03]} 30. Be5 {[%clk 0:00:32]}  Bc6 {[%clk 0:00:01]} 31. Rh8# {[%clk 0:00:32]} 1-0


[Site "https://www.chess.com"]

[Event "Titled Tuesday Blitz November 16 2021"]
[White "Triapishko, Alexandr"]
[Black "Jovic, Stanoje"]
[WhiteFideId "14122286"]
[BlackFideId "905020"]
[WhiteElo "2479"]
[BlackElo "2286"]
[Result "1-0"]
[Round "01"]
[TimeControl "180+1"]
[Date "2021.11.16"]
[WhiteClock "0:00:42"]
[BlackClock "0:00:41"]

1. e4 {[%clk 0:02:44]}  c6 {[%clk 0:02:59]} 2. Nc3 {[%clk 0:02:41]}  d5 {[%clk 0:02:59]} 3. Qe2 {[%clk 0:02:42]}  d4 {[%clk 0:02:57]} 4. Nd1 {[%clk 0:02:41]}  e5 {[%clk 0:02:57]} 5. g3 {[%clk 0:02:40]}  Nf6 {[%clk 0:02:56]} 6. d3 {[%clk 0:02:37]}  Bb4+ {[%clk 0:02:52]} 7. Bd2 {[%clk 0:02:34]}  Bxd2+ {[%clk 0:02:44]} 8. Qxd2 {[%clk 0:02:35]}  O-O {[%clk 0:02:42]} 9. Bg2 {[%clk 0:02:25]}  c5 {[%clk 0:02:41]} 10. f4 {[%clk 0:02:23]}  Nc6 {[%clk 0:02:38]} 11. Nf3 {[%clk 0:02:23]}  Bg4 {[%clk 0:02:37]} 12. O-O {[%clk 0:02:21]}  Bxf3 {[%clk 0:02:29]} 13. Bxf3 {[%clk 0:02:17]}  Qc7 {[%clk 0:02:24]} 14. Nf2 {[%clk 0:02:09]}  b5 {[%clk 0:02:22]} 15. a4 {[%clk 0:02:02]}  a6 {[%clk 0:02:20]} 16. b3 {[%clk 0:01:56]}  c4 {[%clk 0:02:20]} 17. dxc4 {[%clk 0:01:49]}  bxc4 {[%clk 0:02:19]} 18. bxc4 {[%clk 0:01:50]}  Rab8 {[%clk 0:02:11]} 19. Nd3 {[%clk 0:01:24]}  Rfe8 {[%clk 0:02:03]} 20. Rfe1 {[%clk 0:01:17]}  a5 {[%clk 0:02:00]} 21. c5 {[%clk 0:01:12]}  h6 {[%clk 0:01:56]} 22. Rab1 {[%clk 0:01:10]}  Rxb1 {[%clk 0:01:55]} 23. Rxb1 {[%clk 0:01:10]}  Nb4 {[%clk 0:01:43]} 24. Nxb4 {[%clk 0:00:57]}  axb4 {[%clk 0:01:40]} 25. Qxb4 {[%clk 0:00:58]}  exf4 {[%clk 0:01:38]} 26. Qb6 {[%clk 0:00:58]}  Qe5 {[%clk 0:01:33]} 27. Qd6 {[%clk 0:00:57]}  fxg3 {[%clk 0:01:23]} 28. Qxe5 {[%clk 0:00:57]}  Rxe5 {[%clk 0:01:22]} 29. c6 {[%clk 0:00:53]}  gxh2+ {[%clk 0:01:21]} 30. Kxh2 {[%clk 0:00:53]}  Rc5 {[%clk 0:01:15]} 31. Rb8+ {[%clk 0:00:52]}  Kh7 {[%clk 0:01:08]} 32. e5 {[%clk 0:00:52]}  Ng8 {[%clk 0:01:01]} 33. Be4+ {[%clk 0:00:45]}  g6 {[%clk 0:01:01]} 34. Rb7 {[%clk 0:00:45]}  Rxe5 {[%clk 0:00:53]} 35. Rxf7+ {[%clk 0:00:45]}  Kh8 {[%clk 0:00:53]} 36. c7 {[%clk 0:00:45]}  Rc5 {[%clk 0:00:53]} 37. Bb7 {[%clk 0:00:42]}  Rxc2+ {[%clk 0:00:50]} 38. Kg3 {[%clk 0:00:41]}  d3 {[%clk 0:00:46]} 39. c8=Q {[%clk 0:00:41]}  Rxc8 {[%clk 0:00:46]} 40. Bxc8 {[%clk 0:00:42]}  d2 {[%clk 0:00:45]} 41. Bg4 {[%clk 0:00:42]}  h5 {[%clk 0:00:44]} 42. Bd1 {[%clk 0:00:41]}  Nh6 {[%clk 0:00:41]} 43. Rd7 {[%clk 0:00:42]} 1-0


[Site "https://www.chess.com"]

[Event "Titled Tuesday Blitz November 16 2021"]
[White "Zubov, Alexander"]
[Black "Karas, Marek"]
[WhiteFideId "14109409"]
[BlackFideId "14928558"]
[WhiteElo "2685"]
[BlackElo "2261"]
[Result "1-0"]
[Round "01"]
[TimeControl "180+1"]
[Date "2021.11.16"]
[WhiteClock "0:00:08"]
[BlackClock "0:00:02"]

1. d4 {[%clk 0:03:00]}  Nf6 {[%clk 0:02:59]} 2. c4 {[%clk 0:03:00]}  e6 {[%clk 0:03:00]} 3. Nc3 {[%clk 0:02:55]}  d5 {[%clk 0:03:00]} 4. cxd5 {[%clk 0:02:54]}  Nxd5 {[%clk 0:03:01]} 5. Nf3 {[%clk 0:02:52]}  c5 {[%clk 0:03:01]} 6. e3 {[%clk 0:02:52]}  Nc6 {[%clk 0:02:59]} 7. Bc4 {[%clk 0:02:51]}  cxd4 {[%clk 0:02:57]} 8. exd4 {[%clk 0:02:51]}  Be7 {[%clk 0:02:48]} 9. O-O {[%clk 0:02:50]}  O-O {[%clk 0:02:48]} 10. Re1 {[%clk 0:02:45]}  Nf6 {[%clk 0:02:46]} 11. a3 {[%clk 0:02:44]}  b6 {[%clk 0:02:45]} 12. Qd3 {[%clk 0:02:35]}  Bb7 {[%clk 0:02:43]} 13. Ba2 {[%clk 0:02:33]}  Re8 {[%clk 0:02:37]} 14. Bg5 {[%clk 0:02:23]}  Nd5 {[%clk 0:02:28]} 15. h4 {[%clk 0:02:10]}  Nxc3 {[%clk 0:02:25]} 16. bxc3 {[%clk 0:02:09]}  h6 {[%clk 0:02:19]} 17. Bb1 {[%clk 0:01:52]}  Bxg5 {[%clk 0:02:02]} 18. Qh7+ {[%clk 0:01:46]}  Kf8 {[%clk 0:02:02]} 19. hxg5 {[%clk 0:01:45]}  hxg5 {[%clk 0:01:55]} 20. Qh8+ {[%clk 0:01:10]}  Ke7 {[%clk 0:01:55]} 21. Qxg7 {[%clk 0:01:11]}  Rg8 {[%clk 0:01:55]} 22. Qh6 {[%clk 0:01:02]}  g4 {[%clk 0:01:42]} 23. Ng5 {[%clk 0:00:45]}  Qf8 {[%clk 0:01:41]} 24. Qh4 {[%clk 0:00:35]}  Kd7 {[%clk 0:01:23]} 25. d5 {[%clk 0:00:34]}  Nd8 {[%clk 0:01:03]} 26. Nh7 {[%clk 0:00:26]}  Qg7 {[%clk 0:00:50]} 27. Nf6+ {[%clk 0:00:24]}  Kc7 {[%clk 0:00:50]} 28. Qg3+ {[%clk 0:00:23]}  Kc8 {[%clk 0:00:46]} 29. Nxg8 {[%clk 0:00:21]}  Qxg8 {[%clk 0:00:47]} 30. dxe6 {[%clk 0:00:20]}  fxe6 {[%clk 0:00:43]} 31. Be4 {[%clk 0:00:18]}  Bc6 {[%clk 0:00:34]} 32. Rad1 {[%clk 0:00:17]}  Bd5 {[%clk 0:00:28]} 33. c4 {[%clk 0:00:15]}  Bb7 {[%clk 0:00:21]} 34. Qd6 {[%clk 0:00:13]}  Qe8 {[%clk 0:00:17]} 35. Bf5 {[%clk 0:00:09]}  Bc6 {[%clk 0:00:03]} 36. Bxe6+ {[%clk 0:00:08]}  Kb7 {[%clk 0:00:02]} 37. Bc8+ {[%clk 0:00:08]}  Rxc8 {[%clk 0:00:02]} 38. Rxe8 {[%clk 0:00:08]}  Bxe8 {[%clk 0:00:02]} 39. Qe7+ {[%clk 0:00:08]} 1-0


[Site "https://www.chess.com"]

[Event "Titled Tuesday Blitz November 16 2021"]
[White "Afanasiev, Nikita"]
[Black "Adewumi, Tanitoluwa"]
[WhiteFideId "24183555"]
[BlackFideId "30966396"]
[WhiteElo "2577"]
[BlackElo "2552"]
[Result "1-0"]
[Round "02"]
[TimeControl "180+1"]
[Date "2021.11.16"]
[WhiteClock "0:01:37"]
[BlackClock "0:01:21"]

1. e4 {[%clk 0:02:59]}  c5 {[%clk 0:02:58]} 2. Nf3 {[%clk 0:02:58]}  Nc6 {[%clk 0:02:59]} 3. d4 {[%clk 0:02:58]}  cxd4 {[%clk 0:02:59]} 4. Nxd4 {[%clk 0:02:58]}  g6 {[%clk 0:03:00]} 5. c4 {[%clk 0:02:58]}  Bg7 {[%clk 0:03:00]} 6. Be3 {[%clk 0:02:58]}  Nf6 {[%clk 0:03:00]} 7. Nc3 {[%clk 0:02:57]}  O-O {[%clk 0:03:00]} 8. Be2 {[%clk 0:02:57]}  d6 {[%clk 0:03:00]} 9. O-O {[%clk 0:02:57]}  Bd7 {[%clk 0:02:58]} 10. Rc1 {[%clk 0:02:55]}  a6 {[%clk 0:02:56]} 11. Qd2 {[%clk 0:02:53]}  Rb8 {[%clk 0:02:56]} 12. f3 {[%clk 0:02:44]}  Nxd4 {[%clk 0:02:54]} 13. Bxd4 {[%clk 0:02:44]}  b5 {[%clk 0:02:55]} 14. b3 {[%clk 0:02:40]}  Qa5 {[%clk 0:02:43]} 15. Rfd1 {[%clk 0:02:39]}  Kh8 {[%clk 0:02:42]} 16. Kh1 {[%clk 0:02:39]}  Rfc8 {[%clk 0:02:38]} 17. e5 {[%clk 0:02:18]}  dxe5 {[%clk 0:02:36]} 18. Bxe5 {[%clk 0:02:18]}  Rb7 {[%clk 0:02:18]} 19. cxb5 {[%clk 0:02:15]}  axb5 {[%clk 0:02:08]} 20. Nxb5 {[%clk 0:02:12]}  Rxb5 {[%clk 0:01:40]} 21. Rxc8+ {[%clk 0:02:02]}  Bxc8 {[%clk 0:01:40]} 22. Bxb5 {[%clk 0:01:58]}  Qxb5 {[%clk 0:01:39]} 23. Qd8+ {[%clk 0:01:46]}  Ne8 {[%clk 0:01:24]} 24. Bxg7+ {[%clk 0:01:46]}  Kxg7 {[%clk 0:01:25]} 25. Qxc8 {[%clk 0:01:46]}  Qe2 {[%clk 0:01:23]} 26. Qc3+ {[%clk 0:01:45]}  Nf6 {[%clk 0:01:22]} 27. Qd2 {[%clk 0:01:45]}  Qa6 {[%clk 0:01:22]} 28. a4 {[%clk 0:01:43]}  e5 {[%clk 0:01:21]} 29. Re1 {[%clk 0:01:37]} 1-0


[Site "https://www.chess.com"]